bitfinex-derivatives/quotes_SOLF0:USTF0_20250808
["timestamp","ask_amount","ask_price","bid_price","bid_amount"]
[1754648107242,3.19,176.59,176.52,3.25]
[1754648108142,3.19,176.59,176.55,5.663]
[1754648108348,3.19,176.59,176.56,3.25]
[1754648112453,3.19,176.59,176.57,3.25]
[1754648112750,3.19,176.58,176.57,3.25]
[1754648113450,3.19,176.58,176.56,3.25]
[1754648113661,3.19043181,176.6,176.56,3.25]
[1754648113856,3.19,176.57,176.56,3.25]
[1754648119263,3.19,176.58,176.56,8.9127]
[1754648119462,3.19,176.58,176.57,3.25]
[1754648119764,3.19,176.6,176.57,3.25]
[1754648119962,3.19,176.6,176.59,3.25]
[1754648120164,3.19043181,176.62,176.59,3.25]
[1754648120462,3.19,176.61,176.53,3.19043181]
[1754648120663,3.19,176.61,176.6,3.25]
[1754648120855,6.38043181,176.62,176.6,3.25]
[1754648121055,3.19,176.61,176.55,3.19043181]
[1754648121659,3.19,176.61,176.56,3.25]
[1754648122060,3.19,176.61,176.59,5.6617]
[1754648122260,3.19,176.61,176.6,3.25]
[1754648124056,3.19,176.61,176.6,8.9114]
[1754648124262,3.19,176.61,176.6,3.25]
[1754648126561,6.38043181,176.62,176.6,3.25]
[1754648126767,3.19,176.61,176.6,3.25]
[1754648128466,3.19,176.61,176.59,3.25]
[1754648128664,3.19,176.61,176.56,3.25]
[1754648128865,3.19,176.61,176.59,5.6615]
[1754648129065,3.19,176.61,176.6,3.25]
[1754648129564,3.19,176.61,176.59,3.25]
[1754648129769,3.19,176.6,176.59,3.25]
[1754648130469,3.19043181,176.6,176.58,3.25]
[1754648130666,3.19,176.59,176.58,3.25]
[1754648131565,3.19,176.59,176.56,5.6626]
[1754648131867,3.19,176.59,176.58,3.25]
[1754648136278,3.19,176.59,176.57,3.05]
[1754648136471,3.19043181,176.58,176.57,3.05]
[1754648136670,3.11,176.57,176.54,5.6631]
[1754648136976,3.11,176.57,176.56,3.05]
[1754648138777,3.11,176.57,176.53,3.05]
[1754648138980,3.19043181,176.56,176.53,3.05]
[1754648139176,3.11,176.55,176.53,3.05]
[1754648141378,3.11,176.54,176.53,3.05]
[1754648142179,6.30043181,176.54,176.53,3.05]
[1754648144977,3.11,176.53,176.5,3.05]
[1754648145179,3.11,176.51,176.5,3.05]
[1754648145872,3.11,176.51,176.48,3.05]
[1754648146078,3.19043181,176.49,176.42,3.05]
[1754648146273,3.11,176.48,176.42,3.05]
[1754648146477,3.11,176.48,176.46,3.05]
[1754648146978,6.30043181,176.47,176.42,3.05]
[1754648147182,3.19043181,176.47,176.42,3.05]
[1754648147379,3.11,176.45,176.43,5.6668]
[1754648147578,3.11,176.45,176.44,3.05]
[1754648148281,6.30043181,176.47,176.44,8.7166]
[1754648148475,3.11,176.46,176.45,3.05]
[1754648149277,3.19043181,176.47,176.44,3.05]
[1754648149485,3.11,176.45,176.44,3.05]
[1754648149677,6.30043181,176.47,176.44,3.05]
[1754648149879,3.19043181,176.47,176.44,3.05]
[1754648150078,3.11,176.46,176.44,3.05]
[1754648150378,3.11,176.46,176.44,8.7164]
[1754648150583,6.30043181,176.47,176.45,3.05]
[1754648151182,3.11,176.49,176.45,5.666]
[1754648151485,3.11,176.47,176.39,3.19043181]
[1754648151779,6.30043181,176.46,176.39,3.19043181]
[1754648152183,6.30043181,176.46,176.4,3.05]
[1754648152983,6.30043181,176.46,176.44,3.05]
[1754648152984,3.11,176.45,176.44,3.05]
[1754648153385,3.19043181,176.46,176.44,5.6663]
[1754648153582,6.30043181,176.46,176.45,3.05]
[1754648154485,3.19043181,176.46,176.45,3.05]
[1754648154781,6.30043181,176.48,176.46,3.05]
[1754648155684,6.30043181,176.48,176.47,3.05]
[1754648159681,3.11,176.47,176.45,3.05]
[1754648160286,3.19043181,176.46,176.37,3.19043181]
[1754648160485,3.11,176.43,176.38,3.05]
[1754648160681,3.19043181,176.4,176.36,5.6689]
[1754648160985,3.11,176.39,176.37,3.05]
[1754648161386,3.19043181,176.4,176.37,3.05]
[1754648161588,3.11,176.39,176.33,3.05]
[1754648162284,3.11,176.39,176.35,5.6693]
[1754648162591,3.11,176.39,176.36,3.05]
[1754648162781,3.11,176.38,176.36,3.05]
[1754648162982,3.19043181,176.4,176.37,3.05]
[1754648163289,3.11,176.39,176.37,3.05]
[1754648163985,3.11,176.39,176.38,3.05]
[1754648164586,3.11,176.39,176.33,3.05]
[1754648164887,3.11,176.37,176.33,3.05]
[1754648165086,3.11,176.37,176.35,5.6694]
[1754648165286,3.19043181,176.38,176.36,3.05]
[1754648165588,3.19043181,176.38,176.34,3.05]
[1754648165788,3.11,176.37,176.34,3.05]
[1754648166089,3.11,176.37,176.31,3.05]
[1754648166290,6.28043181,176.38,176.31,3.05]
[1754648166586,6.28043181,176.38,176.3,3.19043181]
[1754648166587,6.28043181,176.38,176.34,3.05]
[1754648167089,6.28043181,176.38,176.35,5.6694]
[1754648167289,3.09,176.37,176.36,3.05]
[1754648167983,6.28043181,176.38,176.37,3.05]
[1754648168185,3.19043181,176.4,176.37,3.05]
[1754648168380,3.19043181,176.4,176.38,5.6685]
[1754648168584,3.19043181,176.4,176.39,3.05]
[1754648168885,3.19043181,176.42,176.4,5.6678]
[1754648169088,3.09,176.41,176.4,3.05]
[1754648169386,3.09,176.41,176.39,3.05]
[1754648170089,3.09,176.39,176.33,3.05]
[1754648170689,3.09,176.39,176.37,3.05]
[1754648170889,3.09,176.39,176.38,3.05]
[1754648171983,3.19043181,176.4,176.38,3.05]
[1754648172189,3.09,176.43,176.38,3.05]
[1754648172386,3.09,176.42,176.38,3.05]
[1754648172586,3.19043181,176.44,176.38,3.05]
[1754648172787,3.09,176.42,176.39,5.6679]
[1754648172989,3.19043181,176.44,176.4,3.05]
[1754648173290,3.09,176.48,176.42,3.19043181]
[1754648173487,3.09,176.48,176.45,5.6663]
[1754648173682,3.09,176.47,176.46,3.05]
[1754648174891,3.09,176.47,176.44,3.05]
[1754648176088,3.09,176.47,176.44,8.7164]
[1754648176285,3.09,176.47,176.44,5.6664]
[1754648176492,3.09,176.47,176.46,3.05]
[1754648178695,3.19043181,176.5,176.44,3.05]
[1754648178896,3.09,176.49,176.44,3.05]
[1754648179294,3.09,176.49,176.44,5.6666]
[1754648179498,3.09,176.49,176.46,3.05]
[1754648181096,3.09,176.49,176.45,3.05]
[1754648181295,3.09,176.47,176.45,3.05]
[1754648181693,3.09,176.46,176.4,3.19043181]
[1754648182393,3.09,176.46,176.41,3.05]
[1754648182696,3.09,176.46,176.43,3.05]
[1754648183695,3.09,176.46,176.43,8.7169]
[1754648183897,3.09,176.46,176.44,3.05]
[1754648184292,3.09,176.48,176.44,3.05]
[1754648184493,3.09,176.5,176.46,3.05]
[1754648184694,3.09,176.53,176.46,3.05]
[1754648184893,3.09,176.53,176.47,5.6654]
[1754648185098,3.09,176.53,176.48,3.05]
[1754648185490,3.09,176.52,176.49,3.05]
[1754648185689,3.09,176.55,176.49,3.19043181]
[1754648185890,3.09,176.55,176.5,3.05]
[1754648186196,3.09,176.55,176.49,3.19043181]
[1754648186197,3.09,176.55,176.52,3.05]
[1754648187302,3.09,176.55,176.53,3.05]
[1754648187497,3.19043181,176.58,176.53,3.05]
[1754648187498,3.09,176.57,176.53,3.05]
[1754648188198,3.09,176.57,176.53,8.7135]
[1754648188403,3.19043181,176.6,176.54,3.05]
[1754648188804,3.09,176.58,176.54,3.05]
[1754648189003,3.09,176.57,176.54,3.05]
[1754648189204,3.19043181,176.6,176.54,3.05]
[1754648189404,3.09,176.56,176.54,3.05]
[1754648189606,3.09,176.56,176.55,3.05]
[1754648189902,3.09,176.59,176.55,3.05]
[1754648190305,3.09,176.58,176.55,3.05]
[1754648190805,3.09,176.58,176.56,3.05]
[1754648191106,3.09,176.58,176.57,3.05]
[1754648191503,3.09,176.58,176.55,3.05]
[1754648191699,3.09,176.57,176.56,3.05]
[1754648194404,3.19043181,176.62,176.56,3.05]
[1754648194608,3.09,176.61,176.56,3.05]
[1754648194905,3.09,176.6,176.57,3.05]
[1754648195102,3.09,176.62,176.57,3.05]
[1754648195311,3.19043181,176.64,176.58,3.05]
[1754648195508,3.09,176.63,176.6,3.05]
[1754648197001,3.19043181,176.64,176.6,3.05]
[1754648197204,3.27,176.61,176.59,3.16]
[1754648197403,3.19043181,176.64,176.59,3.16]
[1754648197610,3.27,176.62,176.59,3.16]
[1754648198019,3.27,176.62,176.59,8.8216]
[1754648198211,3.27,176.62,176.6,3.16]
[1754648198406,3.19043181,176.64,176.6,3.16]
[1754648198612,3.27,176.65,176.6,3.16]
[1754648199007,3.19043181,176.68,176.6,3.16]
[1754648199313,3.27,176.65,176.6,3.16]
[1754648199617,6.46043181,176.7,176.62,3.16]
[1754648199815,3.27,176.7,176.64,3.16]
[1754648200115,3.27,176.7,176.66,5.6593]
[1754648200417,3.27,176.7,176.67,3.16]
[1754648200919,3.27,176.71,176.68,3.16]
[1754648202023,3.27,176.71,176.69,3.16]
[1754648202416,3.27,176.7,176.69,3.16]
[1754648203018,3.27,176.7,176.65,3.16]
[1754648203216,3.27,176.71,176.65,3.16]
[1754648203620,3.27,176.71,176.67,3.16]
[1754648203821,6.46043181,176.72,176.67,3.16]
[1754648204020,6.46043181,176.74,176.67,3.16]
[1754648204221,3.27,176.73,176.7,3.16]
[1754648204823,3.19043181,176.74,176.7,3.16]
[1754648205018,6.46043181,176.74,176.7,3.16]
[1754648205223,3.27,176.73,176.7,3.16]
[1754648205524,3.27,176.73,176.69,3.16]
[1754648206623,3.27,176.72,176.69,3.16]
[1754648207216,3.19043181,176.74,176.69,3.16]
[1754648207417,3.19043181,176.74,176.7,3.16]
[1754648207619,6.46043181,176.74,176.7,3.16]
[1754648208022,3.27,176.73,176.7,3.16]
[1754648208226,3.27,176.73,176.7,3.20270923]
[1754648208525,3.27,176.72,176.71,3.16]
[1754648208921,3.27,176.71,176.7,3.20270923]
[1754648209725,3.27,176.71,176.7,0.04270923]
[1754648210634,3.27,176.71,176.7,3.20270923]
[1754648211926,3.27,176.71,176.7,0.04270923]
[1754648212525,3.27,176.71,176.65,3.16]
[1754648212725,3.27,176.68,176.66,3.16]
[1754648212921,3.27,176.68,176.67,3.16]
[1754648214432,3.22860976,176.69,176.67,3.16]
[1754648214632,6.49860976,176.69,176.65,3.16]
[1754648215229,6.49860976,176.69,176.65,5.6598]
[1754648215432,6.49860976,176.69,176.66,3.16]
[1754648215831,3.27,176.68,176.67,3.16]
[1754648216141,3.27,176.68,176.65,3.16]
[1754648216629,3.27,176.68,176.66,3.16]
[1754648216933,3.27,176.68,176.64,3.16]
[1754648217134,3.27,176.68,176.65,3.16]
[1754648217624,3.22860976,176.69,176.65,3.16]
[1754648218226,6.49860976,176.69,176.6,3.19043181]
[1754648218530,3.27,176.68,176.66,3.16]
[1754648218730,3.22860976,176.69,176.66,3.16]
[1754648219335,3.27,176.68,176.67,3.16]
[1754648220228,3.27,176.68,176.65,3.16]
[1754648220428,3.27,176.66,176.61,3.16]
[1754648220830,3.19043181,176.67,176.61,3.16]
[1754648221133,3.30576987,176.65,176.61,3.16]
[1754648221338,3.30576987,176.65,176.62,5.6606]
[1754648221529,3.30576987,176.65,176.63,3.16]
[1754648222036,3.22620168,176.65,176.61,3.16]
[1754648222234,3.22620168,176.65,176.62,3.16]
[1754648222235,3.27,176.63,176.62,3.16]
[1754648222829,3.27,176.64,176.63,3.16]
[1754648223029,0.03576987,176.65,176.63,3.16]
[1754648224725,3.30576987,176.65,176.58,3.19043181]
[1754648224932,6.49620168,176.65,176.59,3.16]
[1754648225134,3.22620168,176.65,176.59,3.16]
[1754648225733,6.49620168,176.65,176.6,5.6613]
[1754648225935,2.99,176.64,176.61,3.22]
[1754648226538,3.22620168,176.65,176.61,3.22]
[1754648226738,6.21620168,176.65,176.61,3.22]
[1754648227037,2.99,176.64,176.61,3.22]
[1754648227235,3.22620168,176.65,176.61,8.8811]
[1754648227435,6.21620168,176.65,176.62,3.22]
[1754648228036,3.22620168,176.65,176.62,3.22]
[1754648229041,6.21620168,176.65,176.62,3.22]
[1754648230141,2.99,176.64,176.63,3.22]
[1754648234444,3.22620168,176.65,176.63,3.22]
[1754648234643,6.21620168,176.65,176.63,3.22]
[1754648234844,6.21620168,176.65,176.64,3.22]
[1754648236550,0.03576987,176.65,176.64,3.22]
[1754648237949,3.02576987,176.65,176.64,3.22]
[1754648238146,3.02576987,176.65,176.62,3.22]
[1754648238339,3.22620168,176.65,176.57,3.19043181]
[1754648238545,6.18043181,176.64,176.58,3.22]
[1754648238745,3.19043181,176.64,176.58,3.22]
[1754648238947,3.03170572,176.63,176.58,3.22]
[1754648239346,2.99,176.62,176.58,3.22]
[1754648239653,3.03170572,176.63,176.58,3.22]
[1754648240052,3.03170572,176.63,176.59,5.6618]
[1754648240251,0.04170572,176.63,176.6,3.22]
[1754648242053,2.99,176.62,176.6,3.22]
[1754648242253,2.99,176.62,176.58,3.22]
[1754648242444,2.99,176.62,176.59,5.6616]
[1754648242645,0.04170572,176.63,176.6,3.22]
[1754648243745,0.04170572,176.63,176.6,8.8813]
[1754648243948,0.04170572,176.63,176.61,3.22]
[1754648244555,0.04170572,176.63,176.61,5.6611]
[1754648244760,0.04170572,176.63,176.62,3.22]
[1754648245257,0.04170572,176.63,176.62,8.8808]
[1754648245756,0.04170572,176.63,176.62,3.22]
[1754648246153,3.03170572,176.63,176.62,3.22]
[1754648246654,0.04170572,176.63,176.62,3.22]
[1754648249160,3.03170572,176.63,176.62,3.22]
[1754648254461,0.04170572,176.63,176.62,3.22]
[1754648255759,3.03170572,176.63,176.62,3.22]
[1754648256758,0.04170572,176.63,176.62,3.22]
[1754648257659,3.17170572,176.63,176.62,3.22]
[1754648262068,0.04170572,176.63,176.62,3.22]
[1754648263565,0.04170572,176.63,176.62,8.8808]
[1754648266067,3.13,176.71,176.65,3.08]
[1754648266661,3.13,176.71,176.64,3.19043181]
[1754648266662,3.13,176.71,176.66,5.6594]
[1754648266864,3.13,176.71,176.67,3.08]
[1754648268370,3.13,176.71,176.67,3.11987547]
[1754648268973,3.13,176.69,176.67,0.03987547]
[1754648269372,3.13,176.69,176.63,5.6603]
[1754648269572,3.13,176.69,176.64,3.08]
[1754648269963,3.13,176.69,176.63,3.08]
[1754648270168,3.19043181,176.76,176.61,3.08]
[1754648270169,3.13,176.67,176.61,3.08]
[1754648270672,3.13,176.67,176.62,3.08]
[1754648270871,3.19043181,176.66,176.58,3.19043181]
[1754648271076,3.13,176.65,176.62,3.11972848]
[1754648271268,0.03833327,176.64,176.62,3.08]
[1754648271469,3.13,176.63,176.62,3.08]
[1754648271669,3.13,176.63,176.62,3.11717367]
[1754648272172,3.13,176.63,176.62,0.03717367]
[1754648274975,3.13,176.63,176.62,3.11717367]
[1754648275977,3.22876508,176.64,176.62,3.11717367]
[1754648276176,6.35876508,176.64,176.62,3.11717367]
[1754648276574,3.16833327,176.64,176.63,3.08]
[1754648278070,0.03833327,176.64,176.63,3.08]
[1754648278776,0.03833327,176.64,176.63,8.7405]
[1754648279170,3.19043181,176.7,176.64,5.6599]
[1754648279377,3.19043181,176.71,176.65,3.08]
[1754648279770,3.13,176.69,176.65,8.7395]
[1754648279975,3.13,176.69,176.66,3.08]
[1754648280578,3.13,176.69,176.66,3.12266987]
[1754648281079,3.13,176.69,176.67,3.08]
[1754648281280,3.19043181,176.71,176.67,3.08]
[1754648281480,3.13,176.69,176.67,3.08]
[1754648282381,3.13,176.68,176.66,0.04266987]
[1754648282678,6.32043181,176.67,176.66,0.04266987]
[1754648283680,3.13,176.66,176.58,3.08]
[1754648283881,3.13,176.63,176.58,3.08]
[1754648284081,3.13,176.62,176.58,3.08]
[1754648284380,3.19043181,176.64,176.58,3.08]
[1754648284580,3.13,176.63,176.61,3.08]
[1754648284881,3.13,176.65,176.61,3.08]
[1754648285281,3.13,176.64,176.61,3.08]
[1754648286174,3.09,176.63,176.61,3.08]
[1754648286375,3.09,176.63,176.61,3.04]
[1754648286972,3.19043181,176.64,176.61,3.04]
[1754648287176,3.09,176.62,176.61,3.04]
[1754648287376,3.19043181,176.64,176.61,3.04]
[1754648287682,3.09,176.65,176.61,3.04]
[1754648288276,3.19043181,176.66,176.59,3.04]
[1754648288679,3.09,176.67,176.61,3.04]
[1754648289682,3.09,176.67,176.64,3.04]
[1754648289882,3.19043181,176.66,176.64,3.04]
[1754648290081,3.09,176.65,176.64,3.04]
[1754648290282,3.09,176.65,176.61,5.661]
[1754648290580,3.09,176.65,176.63,3.04]
[1754648290778,3.09,176.65,176.58,3.19043181]
[1754648290779,3.09,176.66,176.6,3.19043181]
[1754648290974,3.09,176.67,176.64,3.04]
[1754648291386,3.19043181,176.76,176.63,5.6603]
[1754648291387,3.09,176.7,176.63,3.04]
[1754648291880,3.09,176.7,176.64,3.19043181]
[1754648292082,3.09,176.7,176.65,3.04]
[1754648292282,3.09,176.7,176.66,5.6594]
[1754648292482,3.09,176.7,176.67,3.04]
[1754648293187,3.09,176.7,176.67,5.6592]
[1754648293387,3.09,176.7,176.68,3.04]
[1754648293583,3.09,176.69,176.64,3.19043181]
[1754648293780,3.09,176.68,176.65,5.6598]
[1754648293986,3.19043181,176.71,176.62,3.19043181]
[1754648294284,3.09,176.67,176.63,3.04]
[1754648294479,3.09,176.68,176.63,3.04]
[1754648294679,3.09,176.7,176.63,3.04]
[1754648294888,3.19043181,176.73,176.65,3.04]
[1754648295085,3.09,176.72,176.68,3.04]
[1754648295286,3.09,176.72,176.69,3.04]
[1754648295483,3.19043181,176.71,176.69,3.04]
[1754648295787,3.09,176.7,176.68,3.04]
[1754648296287,3.09,176.7,176.69,3.04]
[1754648296983,3.09,176.7,176.66,5.6594]
[1754648297186,3.09,176.7,176.68,3.04]
[1754648297385,3.19043181,176.71,176.68,3.04]
[1754648297588,3.09,176.69,176.68,3.04]
[1754648297790,3.09,176.69,176.66,3.04]
[1754648297983,3.09,176.69,176.63,3.04]
[1754648298189,3.09,176.7,176.65,3.04]
[1754648305097,3.19043181,176.7,176.65,3.04]
[1754648305298,3.09,176.67,176.61,3.04]
[1754648305696,3.09,176.67,176.62,5.6607]
[1754648305997,3.09,176.67,176.63,3.04]
[1754648306699,3.09,176.67,176.63,8.7003]
[1754648306998,3.09,176.67,176.64,3.04]
[1754648310100,3.09,176.68,176.66,3.04]
[1754648311696,3.09,176.69,176.66,3.04]
[1754648312106,3.09,176.68,176.66,3.04]
[1754648312305,3.09,176.68,176.66,8.6994]
[1754648312504,3.09,176.69,176.67,3.04]
[1754648313307,3.09,176.68,176.66,5.6594]
[1754648313508,3.19043181,176.7,176.66,5.6594]
[1754648313709,3.09,176.69,176.66,5.6594]
[1754648313911,3.09,176.69,176.67,3.04]
[1754648315507,3.09,176.69,176.67,8.699]
[1754648315805,3.09,176.71,176.66,3.04]
[1754648316006,3.19043181,176.74,176.66,3.04]
[1754648316007,3.14,176.73,176.66,3.04]
[1754648316313,3.14,176.72,176.7,3.13]
[1754648317011,3.14,176.72,176.71,3.13]
[1754648317202,3.14,176.73,176.71,3.13]
[1754648317805,3.14,176.73,176.69,3.13]
[1754648318709,3.14,176.73,176.7,3.13]
[1754648318914,3.14,176.73,176.69,5.6584]
[1754648319212,3.14,176.73,176.71,3.13]
[1754648319510,3.14,176.73,176.66,3.13]
[1754648320313,3.14,176.73,176.69,5.6584]
[1754648320508,3.14,176.73,176.7,3.13]
[1754648320708,3.14,176.73,176.71,3.13]
[1754648322210,3.14,176.73,176.69,5.6584]
[1754648322415,3.14,176.73,176.7,3.13]
[1754648324817,3.14,176.73,176.71,3.13]
[1754648325020,3.14,176.71,176.66,3.13]
[1754648325220,3.14,176.69,176.66,3.13]
[1754648325519,3.19043181,176.7,176.66,3.13]
[1754648325719,3.14,176.68,176.66,3.13]
[1754648326220,3.14,176.68,176.66,8.7894]
[1754648326407,3.14,176.68,176.67,3.13]
[1754648327820,3.14,176.68,176.67,8.7892]
[1754648328017,3.19043181,176.7,176.67,5.6592]
[1754648328223,3.14,176.69,176.68,3.13]
[1754648329821,3.14,176.69,176.61,3.13]
[1754648330022,3.14,176.66,176.61,3.13]
[1754648330219,3.14,176.66,176.62,5.6606]
[1754648330423,3.14,176.66,176.63,3.13]
[1754648330622,3.14,176.66,176.64,3.13]
[1754648330815,3.14,176.65,176.58,3.19043181]
[1754648331325,3.14,176.65,176.59,3.13]
[1754648331626,3.14,176.65,176.62,5.6605]
[1754648331927,3.14,176.65,176.63,3.13]
[1754648332220,3.14,176.65,176.64,3.13]
[1754648333223,3.14,176.65,176.58,3.19043181]
[1754648333421,6.33043181,176.65,176.59,3.13]
[1754648333728,3.14,176.64,176.59,3.13]
[1754648334819,3.14,176.64,176.6,5.6613]
[1754648335021,3.14,176.64,176.62,3.13]
[1754648336025,103.16,176.73,176.54,103.18]
[1754648336026,3.19043181,176.63,176.54,103.18]
[1754648336220,3.19043181,176.61,176.55,3.13]
[1754648336426,3.19043181,176.61,176.56,5.6626]
[1754648336724,3.19043181,176.61,176.46,11.3315]
[1754648336725,6.33043181,176.59,176.53,3.13]
[1754648337120,6.33043181,176.59,176.55,5.6629]
[1754648337424,3.14,176.59,176.56,3.13]
[1754648337615,6.33043181,176.61,176.56,3.13]
[1754648338223,6.33043181,176.61,176.57,5.6622]
[1754648338422,6.33043181,176.61,176.58,3.13]
[1754648338826,6.33043181,176.63,176.58,8.7918]
[1754648339025,6.33043181,176.63,176.5,4.13]
[1754648339026,3.14,176.62,176.59,3.13]
[1754648339327,3.14,176.62,176.6,3.13]
[1754648339820,3.14,176.62,176.59,3.13]
[1754648340630,3.19043181,176.63,176.56,3.13]
[1754648340828,3.19043181,176.63,176.59,3.13]
[1754648341129,3.14,176.62,176.56,3.13]
[1754648341329,3.14,176.62,176.57,5.6623]
[1754648341531,3.14,176.62,176.58,3.13]
[1754648341829,3.19043181,176.61,176.59,3.13]
[1754648342032,3.14,176.6,176.57,3.13]
[1754648342219,3.14,176.58,176.57,3.13]
[1754648344737,6.33043181,176.59,176.56,3.13]
[1754648345031,3.14,176.58,176.56,3.13]
[1754648346734,3.19043181,176.59,176.55,3.03]
[1754648346931,3.2,176.58,176.56,3.03]
[1754648347134,3.19043181,176.59,176.52,3.19043181]
[1754648347336,6.39043181,176.59,176.54,5.6631]
[1754648347534,3.2,176.58,176.54,5.6631]
[1754648347735,3.2,176.58,176.55,3.03]
[1754648348330,3.2,176.58,176.53,3.03]
[1754648348636,3.2,176.57,176.53,3.03]
[1754648349129,3.19043181,176.59,176.53,3.03]
[1754648349130,3.2,176.56,176.53,3.03]
[1754648349329,3.19043181,176.59,176.53,3.03]
[1754648349542,3.2,176.55,176.53,3.03]
[1754648351433,3.19043181,176.67,176.53,3.03]
[1754648351434,3.19043181,176.57,176.53,3.03]
[1754648351640,3.19043181,176.55,176.49,3.03]
[1754648351936,3.2,176.52,176.5,3.03]
[1754648352336,3.2,176.51,176.45,3.19043181]
[1754648352737,3.2,176.51,176.4,341.45043181]
[1754648352938,3.19043181,176.53,176.46,3.03]
[1754648353130,3.2,176.5,176.46,3.03]
[1754648353333,3.2,176.52,176.45,3.03]
[1754648354035,3.2,176.51,176.48,3.03]
[1754648355433,3.2,176.51,176.47,5.6654]
[1754648355434,6.39043181,176.53,176.49,3.03]
[1754648355633,3.2,176.55,176.49,3.03]
[1754648356038,3.2,176.55,176.51,3.03]
[1754648356438,3.2,176.55,176.52,3.03]
[1754648360048,103.28,176.64,176.53,3.03]
[1754648360049,3.2,176.63,176.53,3.03]
[1754648360240,3.2,176.57,176.53,3.03]
[1754648360637,3.2,176.56,176.53,3.03]
[1754648361645,3.2,176.56,176.54,3.03]
[1754648362233,3.2,176.56,176.51,3.03]
[1754648362843,3.19043181,176.58,176.52,3.03]
[1754648363046,3.2,176.55,176.52,3.03]
[1754648363246,3.2,176.54,176.52,3.03]
[1754648363444,3.2,176.55,176.52,3.03]
[1754648363641,3.2,176.55,176.51,3.03]
[1754648363943,3.2,176.55,176.52,3.03]
[1754648366948,3.19043181,176.54,176.48,5.6652]
[1754648367249,3.2,176.53,176.49,3.03]
[1754648367645,3.2,176.6,176.5,5.6646]
[1754648367845,3.2,176.55,176.51,3.03]
[1754648368153,3.2,176.55,176.52,3.03]
[1754648368659,3.2,176.55,176.49,5.6649]
[1754648368843,3.2,176.55,176.53,3.03]
[1754648372450,3.2,176.55,176.51,3.03]
[1754648372651,3.2,176.55,176.52,3.03]
[1754648373041,3.2,176.55,176.49,5.6649]
[1754648373247,3.2,176.55,176.53,3.03]
[1754648374250,3.19043181,176.56,176.53,3.03]
[1754648374453,3.2,176.54,176.53,3.03]
[1754648375553,6.39043181,176.54,176.53,3.03]
[1754648376258,3.2,176.54,176.53,3.03]
[1754648376452,3.29,176.55,176.53,3.03]
[1754648377265,3.29,176.55,176.48,3.27]
[1754648377653,3.19043181,176.56,176.5,5.6645]